Cogmind - Beta 13 @@@ ROGUE MODE // 2024.04.23 @ 11:05:23 Player: Barbarossa Result: Destroyed by G-50 Soldier with Heavy Laser Performance ------------- Evolutions (2) 1000 Regions Visited (4) 800 Robots Destroyed (64) 320 Value Destroyed (1603) 1603 Prototype IDs (7) 140 Alien Tech Used (0) 0 Bonus (463) 463 TOTAL SCORE: 4326 Bonus ------- High Alert Combat Kills 172 Follower Combat Kills 303 Friendly Fire -12 Cogmind --------- Core Integrity 0/550 Matter 300/300 Energy 100/100 System Corruption 0% Temperature Cool (9) Movement Treading (160) Location -8/Materials Parts ------- > --- POWER (1) -------- (None) > --- PROPULSION (4) --- Improved Treads > --- UTILITY (4) ------ Small Storage Unit Signal Interpreter Hacking Suite > --- WEAPON (2) ------- Katana Katana > --- INVENTORY (8) ---- Light Deuterium Engine Light Nuclear Core Experimental Targeting Computer Spread Laser Heavy Particle Gun Peak State ------------ > --- POWER ------------ Light Nuclear Core > --- PROPULSION ------- Improved Treads Improved Flight Unit Improved Flight Unit Improved Flight Unit > --- UTILITY ---------- Small Storage Unit Signal Interpreter Melee Analysis Suite Hacking Suite > --- WEAPON ----------- Katana Katana > --- INVENTORY -------- Light Nuclear Core Light Nuclear Core Improved Treads Improved Heat Sink Cooling System Experimental Targeting Computer Heavy Particle Gun [Rating: 30] Favorites ----------- Power Cooled Ion Engine Engine Cooled Ion Engine Power Core Light Nuclear Core Propulsion Improved Flight Unit Treads Light Treads Leg Aluminum Leg Wheel Wheel Flight Unit Improved Flight Unit Utility Small Storage Unit Storage Small Storage Unit Processor Signal Interpreter Hackware Hacking Suite Protection Light Armor Plating Weapon Small Laser Energy Gun Small Laser Slashing Weapon Katana Build | -11 -10 -9 -9 -8 ------- Run | Yrd Mat Mat Sto Mat Slots Evolved 4 | . . 2 . 2 Power . | . . . . . Propulsion 2 | . . 2 . . Utility 2 | . . . . 2 Weapon . | . . . . . Parts Attached 73 | . 6 17 28 22 Power 10 | . . 5 3 2 Engine 8 | . . 5 3 . Core 2 | . . . . 2 Reactor . | . . . . . Propulsion 35 | . 5 8 11 11 Treads 12 | . . 2 5 5 Leg . | . . . . . Wheel 3 | . 3 . . . Hover . | . . . . . Flight 20 | . 2 6 6 6 Utility 6 | . . 2 . 4 Device . | . . . . . Storage 2 | . . . . 2 Processor 2 | . . 1 . 1 Hackware 1 | . . . . 1 Protection 1 | . . 1 . . Artifact . | . . . . . Weapon 22 | . 1 2 14 5 Energy Gun 18 | . 1 2 14 1 Energy Cannon . | . . . . . Ballistic Gun . | . . . . . Ballistic Cannon . | . . . . . Launcher . | . . . . . Special Weapon . | . . . . . Impact Weapon . | . . . . . Slashing Weapon 4 | . . . . 4 Piercing Weapon . | . . . . . Special Melee Weapon . | . . . . . Unidentified Prototypes 4 | . . 1 2 1 Parts Lost 20 | . 1 4 1 14 Power 3 | . . 2 . 1 Propulsion 11 | . 1 1 . 9 Utility 2 | . . . . 2 Weapon 4 | . . 1 1 2 Highest Loss Streak 10 | . 1 2 1 10 To Critical Strikes . | . . . . . Average Slot Usage (%) 91 | . 84 86 98 85 Engine 8 | . 14 9 11 1 Core 1 | . . . . 6 Treads 8 | . . 11 11 8 Leg 1 | . 11 . . . Wheel 2 | . 16 . . . Flight 25 | . . 32 31 24 Storage 10 | . 14 11 11 8 Processor 9 | . . 3 11 14 Hackware 1 | . . . . 4 Energy Gun 16 | . 28 18 21 3 Slashing Weapon 3 | . . . . 11 Naked Turns . | . . . . . Heaviest Build 15 | 12 12 12 15 15 Greatest Support 26 | 20 26 20 23 23 Greatest Overweight (x) 2 | . 1 . . 2 Average Overweight (x) . | . . . . . Largest Inventory Capacity 8 | . 8 8 8 8 Average Capacity 7 | . 8 8 8 7 Most Carried 8 | . 8 8 8 8 Average Carried 7 | . 7 7 7 6 Final Capacity 8 | 8 8 8 8 8 Final Carried 8 | 6 8 8 7 5 Class Distribution -------------------- 53% | Mutant 25% | Scavenger-Mutant 11% | Scavenger-Gladiator 10% | Commander-Mutant Dominant Class ---------------- Mutant | -10/Materials Scavenger-Mutant | -9/Materials Mutant | -9/Storage Mutant | -8/Materials Resources | -11 -10 -9 -9 -8 ----------- Run | Yrd Mat Mat Sto Mat Matter Collected 860 | 200 60 99 341 160 Remotely . | . . . . . Salvage Created 2696 | . 487 484 714 1011 Parts 160 | . 26 27 46 61 Haulers Intercepted 11 | . 1 1 4 5 Recyclers Shooed 5 | . 3 1 1 . Parts Field Recycled . | . . . . . Retrieved Matter . | . . . . . Parts Self-Destructed . | . . . . . Prevented . | . . . . . Kills | -11 -10 -9 -9 -8 ------- Run | Yrd Mat Mat Sto Mat Combat Hostiles Destroyed 42 | . 9 9 10 14 Melee 12 | . . . . 12 Guns 28 | . 9 9 9 1 AOE 1 | . . . . 1 Classes Destroyed 12 | . 5 2 1 4 Worker 5 | . 2 1 1 1 Hauler 11 | . 1 1 4 5 Recycler 3 | . 2 1 . . Operator 2 | . . . 1 1 Watcher 1 | . . 1 . . Swarmer 8 | . 5 3 . . Cutter 1 | . . . . 1 Grunt 17 | . 4 3 5 5 Brawler 1 | . . . . 1 Duelist 1 | . . . . 1 Sentry 13 | . . 3 5 5 Hunter 1 | . . . . 1 Best Kill Streak 6 | . 6 3 4 4 Combat Bots Only 4 | . 4 2 2 3 Max Kills in Single Turn 2 | . 1 1 1 2 Gunslinging . | . . . . . Exploded 1 | . . . . 1 Melee 1 | . . . . 1 Uniques/NPCs Destroyed . | . . . . . Combat | -11 -10 -9 -9 -8 -------- Run | Yrd Mat Mat Sto Mat Hostile Shots Fired 370 | . 47 77 94 152 Missed 140 | . 8 33 39 60 Damage Taken 3452 | . 349 527 727 1849 Core 838 | . 92 37 154 555 Absorbed by Shields . | . . . . . Regen/Repaired (Parts) 191 | . . 69 94 28 Core Remaining (%) 71 | 100 63 . 52 . Volleys Fired 182 | . 35 43 79 25 Largest 2 | . 2 2 2 2 Hottest 80 | . 80 80 80 80 Shots Fired 345 | . 70 80 151 44 Gun 345 | . 70 80 151 44 Cannon . | . . . . . Launcher . | . . . . . Special . | . . . . . Kinetic . | . . . . . Thermal 345 | . 70 80 151 44 Explosive . | . . . . . Electromagnetic . | . . . . . Robot Hit Streak 18 | . 5 18 11 4 Robot Miss Streak 6 | . 3 4 3 6 Penetration Max . | . . . . . Secondary Targets 4 | . 2 1 1 . Max Gunslinging Chain 1 | . 1 1 1 . Shots Hit Robots 260 | . 37 57 106 60 Core Hits 102 | . 22 23 34 23 Critical Kills . | . . . . . Critical Parts Destroyed . | . . . . . Critical Strikes . | . . . . . Melee Attacks 49 | . . . . 49 Impact . | . . . . . Slashing 49 | . . . . 49 Piercing . | . . . . . Sneak Attacks 8 | . . . . 8 Combat Hostiles . | . . . . . Follow-up Attacks 4 | . . . . 4 Damage Inflicted 3987 | . 442 643 1176 1726 Guns 2516 | . 438 643 1176 259 Cannons . | . . . . . Explosions . | . . . . . Melee 1467 | . . . . 1467 Ramming 4 | . 4 . . . Kinetic . | . . . . . Thermal 2516 | . 438 643 1176 259 Explosive . | . . . . . Electromagnetic . | . . . . . Impact . | . . . . . Slashing 1467 | . . . . 1467 Piercing . | . . . . . Highest Corruption . | . . . . . Average Corruption . | . . . . . Corruption Purged . | . . . . . Corruption Blocked . | . . . . . Overload Shots . | . . . . . Overflow Damage 130 | . . . . 130 Projectiles . | . . . . . Explosions . | . . . . . Melee 130 | . . . . 130 Knockbacks . | . . . . . Impact . | . . . . . Kinetic . | . . . . . Secondary . | . . . . . Self-Inflicted Damage 2 | . 2 . . . Shots . | . . . . . Rammed 1 | . 1 . . . Targets Rammed 1 | . 1 . . . Kicked . | . . . . . Crushed . | . . . . . Highest Temperature 276 | . 161 206 276 175 Average Temperature 75 | . 58 81 85 57 Received Heat Transfer 1242 | . 63 168 336 675 Effects 5 | . . . 5 . Energy Bleed 2 | . . . 2 . Interference 3 | . . . 3 . Siege Activations . | . . . . . Robots Corrupted . | . . . . . Combat Hostiles . | . . . . . Parts Fried . | . . . . . Impact Corruptions . | . . . . . Robots Melted 1 | . . . 1 . Combat Hostiles 1 | . . . 1 . Parts Melted 8 | . 1 3 4 . Heat Transferred 5750 | . 1000 1475 2675 600 Parts Sabotaged . | . . . . . Parts Stolen . | . . . . . Parts Stripped . | . . . . . Power Chain Reactions . | . . . . . Alert | -11 -10 -9 -9 -8 ------- Run | Yrd Mat Mat Sto Mat Peak Influence 699 | . 292 406 699 526 Initial 242 | . . 122 170 242 Average 390 | . 135 253 500 391 Maximum Alert Level 2 | . 1 2 2 2 Low Security (%) 14 | . 59 37 4 . Level 1 35 | . 40 52 20 49 Level 2 49 | . . 9 74 50 Level 3 . | . . . . . Level 4 . | . . . . . Level 5 . | . . . . . High Security . | . . . . . Max Security . | . . . . . Squads Dispatched 10 | . 2 . 3 5 Investigation 2 | . . . 2 . Extermination . | . . . . . Reinforcement 6 | . 2 . 1 3 Assault 1 | . . . . 1 Garrison 1 | . . . . 1 Intercept . | . . . . . Searches Triggered . | . . . . . Construction Impeded . | . . . . . Haulers Reinforced . | . . . . . Active Scanning Responses . | . . . . . Cargo Convoy Interrupts . | . . . . . Stealth | -11 -10 -9 -9 -8 --------- Run | Yrd Mat Mat Sto Mat Distress Signals 6 | . 2 . 1 3 Communications Jammed . | . . . . . Distress Signals . | . . . . . Times Spotted 85 | . 17 11 24 33 Peak Tracking Total 9 | . 7 4 4 9 Tactical Retreats 5 | . 1 . 1 3 Traps | -11 -10 -9 -9 -8 ------- Run | Yrd Mat Mat Sto Mat Traps Triggered 2 | . 1 . 1 . Indirectly . | . . . . . Trap Hack Attempts . | . . . . . Triggered . | . . . . . Disarmed . | . . . . . Reprogrammed . | . . . . . Reused . | . . . . . Traps Extracted . | . . . . . Installed . | . . . . . Triggered . | . . . . . Machines | -11 -10 -9 -9 -8 ---------- Run | Yrd Mat Mat Sto Mat Machines Disabled . | . . . . . Max in Single Turn . | . . . . . Garrison Access 2 | . . . 1 1 Machines Repaired . | . . . . . Machines Dismantled . | . . . . . Machines Sabotaged . | . . . . . Overloaded Fab Kills . | . . . . . Hacking | -11 -10 -9 -9 -8 --------- Run | Yrd Mat Mat Sto Mat Machines Accessed 17 | . 1 3 7 6 Terminals 9 | . 1 2 3 3 Fabricators . | . . . . . Repair Stations 4 | . . 1 2 1 Recycling Units 2 | . . . 1 1 Scanalyzers 1 | . . . . 1 Garrison Access 1 | . . . 1 . Total Hacks 45 | . 2 7 23 13 Successful 27 | . 2 3 13 9 Failed 18 | . . 4 10 4 Catastrophic 3 | . . . 3 . Database Lockouts . | . . . . . Manual 21 | . 1 5 7 8 Terminals 25 | . 2 5 10 8 Fabricators . | . . . . . Repair Stations 13 | . . 2 9 2 Recycling Units 4 | . . . 3 1 Scanalyzers 2 | . . . . 2 Garrison Access 1 | . . . 1 . Terminal Hacks 4 | . 1 . 2 1 Prototype ID Bank 1 | . 1 . . . Open Door 2 | . . . 2 . Scanalyzer Index 1 | . . . . 1 Fabricator Hacks . | . . . . . Repair Station Hacks 10 | . . 2 6 2 Scan Component 5 | . . 1 3 1 Repair 5 | . . 1 3 1 Recycling Unit Hacks 4 | . . . 3 1 Process 1 | . . . 1 . Report Inventory 2 | . . . 1 1 Retrieve Matter 1 | . . . 1 . Scanalyzer 2 | . . . . 2 Insert Component 1 | . . . . 1 Analyze 1 | . . . . 1 Garrison Access Hacks 1 | . . . 1 . Seal Access 1 | . . . 1 . Unauthorized Hacks 6 | . 1 1 1 3 Terminals 6 | . 1 1 1 3 Botnet 6 | . 1 1 1 3 Fabricators . | . . . . . Repair Stations . | . . . . . Recycling Units . | . . . . . Scanalyzers . | . . . . . Garrison Access . | . . . . . Data Cores Recovered . | . . . . . Used . | . . . . . Hacking Detections 12 | . 1 2 5 4 Full Trace Events 1 | . . . 1 . Feedback Events . | . . . . . Feedback Blocked . | . . . . . Robot Schematics Acquired . | . . . . . Robots Built . | . . . . . Authchips . | . . . . . Time . | . . . . . Total Robot Build Rating . | . . . . . Part Schematics Acquired 1 | . . . . 1 Parts Built . | . . . . . Authchips . | . . . . . Time . | . . . . . Total Part Build Rating . | . . . . . Parts Repaired 5 | . . 1 3 1 Time 205 | . . 26 128 51 Parts Recycled . | . . . . . Recycled Matter 202 | . . . 202 . Retrieved Matter 265 | . . . 265 . Retrieved Components . | . . . . . Parts Scanalyzed 1 | . . . . 1 Part Schematics Acquired 1 | . . . . 1 Parts Damaged . | . . . . . Bothacking | -11 -10 -9 -9 -8 ------------ Run | Yrd Mat Mat Sto Mat Used RIF Installer . | . . . . . Robots Hacked . | . . . . . Non-combat . | . . . . . Combat . | . . . . . Robot Hacks Applied . | . . . . . Relay Couplers Released 1 | . . . . 1 Machine Destruction 1 | . . . . 1 Fabnet Peak Effective % . | . . . . . Robots Rewired . | . . . . . Allies Hacked . | . . . . . Hacks Repelled . | . . . . . Allies | -11 -10 -9 -9 -8 -------- Run | Yrd Mat Mat Sto Mat Total Allies 10 | . . . 10 . Largest Group 10 | . . . 10 . Highest-Rated Group 88 | . . . 88 . Highest-Rated Ally 16 | . . . 16 . Total Orders . | . . . . . Ally Attacks 84 | . . . 84 . Total Damage 807 | . . . 807 . Kills 16 | . . . 16 . Allies Corrupted . | . . . . . Allies Melted . | . . . . . Intel | -11 -10 -9 -9 -8 ------- Run | Yrd Mat Mat Sto Mat Robot Analysis Total . | . . . . . Derelict Logs Recovered . | . . . . . Drone Launches . | . . . . . Drone Recoveries . | . . . . . Exploration | -11 -10 -9 -9 -8 ------------- Run | Yrd Mat Mat Sto Mat Turns Passed 2232 | . 283 285 998 666 Spaces Moved 1661 | 1 151 163 738 608 Core 3 | . . . . 3 Treads 67 | . . 6 45 16 Legs 61 | 1 60 . . . Wheels 91 | . 91 . . . Hover . | . . . . . Flight 1439 | . . 157 693 589 Fastest Speed 52 | 120 80 54 54 52 Average Speed 63 | 120 99 57 60 58 Slowest Speed 170 | 120 120 160 160 170 Overloaded Moves . | . . . . . Propulsion Burnouts . | . . . . . Robots Hopped 12 | . . 1 4 7 Cave-ins Triggered . | . . . . . Exploration Rate (%) 38 | 2 33 21 82 52 Regions Visited 4 Branch Regions 1 Pre-discovered Areas . | . . . . . Known Exits Taken 2 | . . 1 1 . Unknown Exits Taken 2 | 1 1 . . . Scrap Searched . | . . . . . Spaces Dug . | . . . . . Terrain Destroyed . | . . . . . Melee . | . . . . . Projectile . | . . . . . AOE . | . . . . . Terrain Rammed . | . . . . . Walls Destroyed . | . . . . . Machines Disabled . | . . . . . Actions | -11 -10 -9 -9 -8 --------- Run | Yrd Mat Mat Sto Mat Total 2416 | . 213 268 1138 797 Wait 375 | . 7 34 251 83 Move 1633 | . 150 160 729 594 Hop 12 | . . 1 4 7 Pick Up 41 | . 8 8 12 13 Fast Attach 15 | . 2 3 5 5 Attach 17 | . . 6 3 8 Detach . | . . . . . Swap 42 | . 4 9 20 9 Drop 41 | . 6 4 23 8 Fire 182 | . 35 43 79 25 Melee 45 | . . . . 45 Ram 1 | . 1 . . . Kick . | . . . . . Crush . | . . . . . Escape Stasis 8 | . . . 8 . Rewire 4 | . . . 4 . Trap . | . . . . . Miscellaneous . | . . . . . Route ------- -11/Scrapyard -10/Materials -9/Materials (discovered 2 exits: *Mat / *Sto) -9/Storage -8/Materials (discovered 1 exit: *Fac) History --------- Turn | Location | Event 1 | -11/Scrapyard | Discovered new exit (range 0) 1 | -11/Scrapyard | Entered Materials 264 | -10/Materials | Discovered new exit (range 16) 284 | -10/Materials | Entered another Materials area 284 | -9/Materials | Evolved 2 slots: Propulsion x2 310 | -9/Materials | Build established: Mutant 371 | -9/Materials | Repaired Sml. Laser 462 | -9/Materials | Discovered new exit (range 14) 473 | -9/Materials | Identified exit to Materials 483 | -9/Materials | Discovered new exit (range 14) 568 | -9/Materials | Identified exit to Storage 569 | -9/Materials | Entered Storage 600 | -9/Storage | Assisted by bots powering up and referring to "LRC-V3" 713 | -9/Storage | Repaired Sml. Laser 773 | -9/Storage | Lost 3 allies 884 | -9/Storage | Discovered exit to Materials (range 10) 1001 | -9/Storage | Repaired Imp. Flight Unit 1016 | -9/Storage | Found Prototype Processor 1549 | -9/Storage | Repaired Imp. Flight Unit 1567 | -9/Storage | Entered Materials 1567 | -8/Materials | Evolved 2 slots: Utility x2 1711 | -8/Materials | Lost 4 parts (2n2w) 1839 | -8/Materials | Core integrity fell below 50% 1855 | -8/Materials | Discovered new exit (range 12) 1860 | -8/Materials | Identified exit to Factory 2124 | -8/Materials | Repaired Imp. Flight Unit 2135 | -8/Materials | Garrison activated, responded to threat 2163 | -8/Materials | Core integrity fell below 20% 2178 | -8/Materials | Identified Exp. Targeting Computer 2228 | -8/Materials | Lost 10 parts (1p7n2u) 2233 | -8/Materials | Destroyed by G-50 Soldier with Heavy Laser Last Messages --------------- >>Scanalyze Scanning: Exp. Targeting Computer... Schematic downloaded. 02182_ Surge Thruster destroyed. 02190_ Acquired Sml. Storage Unit. 02193_ ALERT: Hostiles spotted, dispatching reinforcements to Terminal M007. 02194_ Arm. Treads destroyed. 02195_ Katana follow-up attack on Y-45 Defender. 02195_ Y-45 Defender destroyed. 02197_ Surge Thruster destroyed. 02197_ Acquired 10 matter. 02222_ Sneak attack on O-24 Administrator. 02222_ Destroyed Imp. Hover Unit. 02222_ Sneak attack on O-24 Administrator. 02222_ Katana follow-up attack on O-24 Administrator. 02222_ O-24 Administrator destroyed. 02225_ Acquired 10 matter. 02228_ Acquired Lgt. Deuterium Engine. Map ----- +----------------------------------------------------+ | ????????????????????# =%= ! | | ??????????????????### ! ! | | ?????????????????# "T " | | ?????????????????# ### ## "## | | ?????????????????#??# "# | | ????????????????????# "# | | ????????????????????# ## | | ???????????????? ! # ## | | ???????????????? # ## | | ????????????????# ## + | | ????????????????# ## ## | | ???#######??????# ####/####### | | ??# ! #? ????# #??# # = | | ??# ! # ???# #?## # | | ??# ]#? /!?# ### # | | ??# """ # # + | | ??? """ #??? + # """ | | ?????"" ######?# # """ ! | | ????###+## ### # """ | | ????# !![ + | | ????# g [%= ####### | | ?######/## ##* ###?????? | | ?# gb ####### #???????? | | ?# """"" #?????# !#???????? | | ?# ""T""g#?????##!!!!##???????? | | ?# @gm#??????######????????? | | ?#########????????????????????? | | | | | | | | | | | | | | | | | | | | | | | | | | | | | | | | | | | | | | | | | | | | | | | +----------------------------------------------------+ Best States ------------- Heat Dissipation 31 Energy Generation 14 Energy Capacity 280 Matter Stores 300 Matter Capacity 300 Sight Range 16 Terrain Scan Density 10 Evasion (%) 59 Melee Accuracy 5 Recoil Reduction 1 Offensive Hacking 10 Item Schematics ----------------- Exp. Targeting Computer | -8/Materials | Scanalyzed Robot Schematics ------------------ None Fabricated ------------ Nothing Alien Tech Used ----------------- None Achievements -------------- None Challenges ------------ None Game ------ Seed SignalVisualMinigun Manual? 0 Play Time 00:36:41 Cumulative 120.5 hours Start 2024.04.22 @ 14:02:21 End 2024.04.23 @ 11:05:23 Sessions 3 Manual Loads 0 Difficulty Rogue Special Mode None Game No. 233 Rogue 233 Adventurer 0 Explorer 0 Win Type - Total 0 Types 0/0/0/0/0/0/0/0/0 Lore% 33 Gallery% 46 Achievement% 32 Wizard Run 0 Options --------- Layout 1 ASCII 0 Keyboard 0 Movement Mouse Keybinds 0 Fullscreen 1 Font 24/Smallcaps Map View 50x40 Zoom Use 0% Tactical HUD 1 Map Filters NONE Filters NONE Steam 1 RUN: 8210bc48-0841-476d-a003-007e752f212f